[Event "Late-Titled-Tuesday-Blitz-May-28-2024"]
[Site "Chess.com"]
[Date "2024.05.28"]
[Round "7"]
[White "jcmesafischer"]
[Black "Itay121"]
[Result "1-0"]
[WhiteElo "2373"]
[BlackElo "2525"]
[TimeControl "180+1"]
[EndTime "15:12:42 PDT"]
[Termination "jcmesafischer won by resignation"]

1. e4 {[%clk 0:03:00.9]} 1... e6 {[%clk 0:02:57.6]} 2. Qe2 {[%clk 0:03:00.6]}
2... d5 {[%clk 0:02:58.1]} 3. exd5 {[%clk 0:03:00.9]} 3... Nf6 {[%clk 0:02:57]}
4. Nc3 {[%clk 0:02:59.7]} 4... Bb4 {[%clk 0:02:55.2]} 5. Qb5+ {[%clk 0:02:57.4]}
5... c6 {[%clk 0:02:52]} 6. Qxb4 {[%clk 0:02:57.3]} 6... exd5 {[%clk 0:02:52.7]}
7. Nf3 {[%clk 0:02:50.4]} 7... b6 {[%clk 0:02:48.3]} 8. d4 {[%clk 0:02:49.8]}
8... Na6 {[%clk 0:02:46.4]} 9. Bxa6 {[%clk 0:02:42.5]} 9... Bxa6 {[%clk
0:02:47.3]} 10. Bf4 {[%clk 0:02:41.8]} 10... Ne4 {[%clk 0:02:42.8]} 11. Nxe4
{[%clk 0:02:34.6]} 11... dxe4 {[%clk 0:02:43.7]} 12. Nd2 {[%clk 0:02:34.8]}
12... Qd5 {[%clk 0:02:34.8]} 13. Qd6 {[%clk 0:02:32.1]} 13... Rd8 {[%clk
0:02:27.5]} 14. Qxd5 {[%clk 0:02:31.5]} 14... cxd5 {[%clk 0:02:28.4]} 15. c3
{[%clk 0:02:30.4]} 15... Bd3 {[%clk 0:02:26.7]} 16. Nf1 {[%clk 0:02:30]} 16...
f6 {[%clk 0:02:23.2]} 17. h4 {[%clk 0:02:30.4]} 17... Kf7 {[%clk 0:02:22.4]} 18.
Ne3 {[%clk 0:02:30.6]} 18... b5 {[%clk 0:02:17.7]} 19. Kd2 {[%clk 0:02:30.1]}
19... a5 {[%clk 0:02:17.6]} 20. a4 {[%clk 0:02:29.3]} 20... bxa4 {[%clk
0:02:11.9]} 21. Rxa4 {[%clk 0:02:28.7]} 21... Rb8 {[%clk 0:02:12.6]} 22. Bxb8
{[%clk 0:02:24.2]} 22... Rxb8 {[%clk 0:02:11.9]} 23. b4 {[%clk 0:02:24.2]} 23...
axb4 {[%clk 0:02:11.8]} 1-0

[Event "Late-Titled-Tuesday-Blitz-May-28-2024"]
[Site "Chess.com"]
[Date "2024.05.28"]
[Round "7"]
[White "BenchGM"]
[Black "2L8IWUN"]
[Result "1-0"]
[WhiteElo "2234"]
[BlackElo "2168"]
[TimeControl "180+1"]
[EndTime "15:14:09 PDT"]
[Termination "BenchGM won by checkmate"]

1. d4 {[%clk 0:03:00.9]} 1... Nf6 {[%clk 0:02:56.2]} 2. Nf3 {[%clk 0:03:01.1]}
2... d5 {[%clk 0:02:56.1]} 3. Bg5 {[%clk 0:03:01.2]} 3... e6 {[%clk 0:02:56.2]}
4. e3 {[%clk 0:03:00.6]} 4... Nbd7 {[%clk 0:02:56.1]} 5. Bd3 {[%clk 0:03:00.8]}
5... h6 {[%clk 0:02:56.4]} 6. Bf4 {[%clk 0:03:00.5]} 6... Bd6 {[%clk 0:02:55.6]}
7. Ne5 {[%clk 0:02:58.8]} 7... O-O {[%clk 0:02:54.9]} 8. Nd2 {[%clk 0:02:58.6]}
8... Qe7 {[%clk 0:02:52.4]} 9. Qf3 {[%clk 0:02:58.6]} 9... c5 {[%clk 0:02:52.1]}
10. c3 {[%clk 0:02:58.5]} 10... Ne8 {[%clk 0:02:42.6]} 11. h4 {[%clk 0:02:56]}
11... cxd4 {[%clk 0:02:38.3]} 12. exd4 {[%clk 0:02:55.9]} 12... Nxe5 {[%clk
0:02:38.6]} 13. dxe5 {[%clk 0:02:55.8]} 13... Bc5 {[%clk 0:02:38]} 14. Qg3
{[%clk 0:02:55.1]} 14... Kh8 {[%clk 0:02:35.3]} 15. Rh3 {[%clk 0:02:54.9]} 15...
f6 {[%clk 0:02:31.6]} 16. O-O-O {[%clk 0:02:44.8]} 16... Bxf2 {[%clk 0:02:12]}
17. exf6 {[%clk 0:02:07.1]} 17... Bxg3 {[%clk 0:01:41.3]} 18. fxe7 {[%clk
0:02:06.5]} 18... Rxf4 {[%clk 0:01:37.5]} 19. Rxg3 {[%clk 0:02:06.4]} 19... Rf7
{[%clk 0:01:25.5]} 20. Nf3 {[%clk 0:02:02.8]} 20... Rxe7 {[%clk 0:01:25.2]} 21.
Ne5 {[%clk 0:02:02.7]} 21... Rc7 {[%clk 0:01:20.4]} 22. Rf1 {[%clk 0:02:00.4]}
22... Nd6 {[%clk 0:01:16.8]} 23. Rf8# {[%clk 0:01:49]} 1-0

[Event "Late-Titled-Tuesday-Blitz-May-28-2024"]
[Site "Chess.com"]
[Date "2024.05.28"]
[Round "7"]
[White "tactic"]
[Black "maurovargas01"]
[Result "1-0"]
[WhiteElo "2552"]
[BlackElo "1931"]
[TimeControl "180+1"]
[EndTime "15:14:35 PDT"]
[Termination "tactic won by checkmate"]

1. Nf3 {[%clk 0:03:00.9]} 1... Nc6 {[%clk 0:02:58.1]} 2. d4 {[%clk 0:03:00.9]}
2... d6 {[%clk 0:02:57.5]} 3. g3 {[%clk 0:03:01.3]} 3... g6 {[%clk 0:02:53.2]}
4. Bg2 {[%clk 0:03:01.9]} 4... Bg7 {[%clk 0:02:53.4]} 5. O-O {[%clk 0:03:02.7]}
5... e5 {[%clk 0:02:52.8]} 6. e3 {[%clk 0:02:59.9]} 6... Bg4 {[%clk 0:02:52.3]}
7. h3 {[%clk 0:02:59.4]} 7... Bxf3 {[%clk 0:02:49.1]} 8. Bxf3 {[%clk 0:03:00.3]}
8... exd4 {[%clk 0:02:47.8]} 9. exd4 {[%clk 0:03:01.2]} 9... Nxd4 {[%clk
0:02:42.3]} 10. Bxb7 {[%clk 0:03:02.1]} 10... Rb8 {[%clk 0:02:39.8]} 11. Re1+
{[%clk 0:03:02.8]} 11... Ne7 {[%clk 0:02:38]} 12. Bg5 {[%clk 0:02:58.4]} 12...
Ne6 {[%clk 0:02:36.2]} 13. Bc6+ {[%clk 0:02:57.2]} 13... Kf8 {[%clk 0:02:32]}
14. Rxe6 {[%clk 0:02:47]} 14... fxe6 {[%clk 0:02:29]} 15. Qf3+ {[%clk
0:02:47.7]} 15... Kg8 {[%clk 0:02:26]} 16. Qg4 {[%clk 0:02:48]} 16... h6 {[%clk
0:02:20.6]} 17. Qxe6+ {[%clk 0:02:47.7]} 17... Kh7 {[%clk 0:02:20.6]} 18. Bxe7
{[%clk 0:02:48.2]} 18... Qg8 {[%clk 0:02:18.2]} 19. Qd7 {[%clk 0:02:37]} 19...
Rxb2 {[%clk 0:02:08.1]} 20. Bf6 {[%clk 0:02:33.9]} 20... Rxc2 {[%clk 0:02:05.1]}
21. Be4 {[%clk 0:02:07.8]} 21... Rc1+ {[%clk 0:02:01.5]} 22. Kh2 {[%clk
0:02:06.7]} 22... Qf8 {[%clk 0:01:58.3]} 23. Bd4 {[%clk 0:01:31.3]} 23... Rc4
{[%clk 0:01:34]} 24. Qe6 {[%clk 0:01:19.4]} 24... Rxd4 {[%clk 0:01:29.5]} 25.
Bxg6# {[%clk 0:01:19.4]} 1-0

[Event "Late-Titled-Tuesday-Blitz-May-28-2024"]
[Site "Chess.com"]
[Date "2024.05.28"]
[Round "7"]
[White "eljanov"]
[Black "Stanbad1"]
[Result "1-0"]
[WhiteElo "2886"]
[BlackElo "2674"]
[TimeControl "180+1"]
[EndTime "15:14:42 PDT"]
[Termination "eljanov won by resignation"]

1. d4 {[%clk 0:03:00.9]} 1... Nf6 {[%clk 0:02:59.4]} 2. Bf4 {[%clk 0:03:01.3]}
2... g6 {[%clk 0:02:59.5]} 3. Nf3 {[%clk 0:02:58.9]} 3... Bg7 {[%clk 0:02:59]}
4. e3 {[%clk 0:02:59.3]} 4... d6 {[%clk 0:02:59]} 5. h3 {[%clk 0:02:59.5]} 5...
O-O {[%clk 0:02:58.5]} 6. Be2 {[%clk 0:02:59.8]} 6... b6 {[%clk 0:02:58.8]} 7.
O-O {[%clk 0:02:59.2]} 7... Bb7 {[%clk 0:02:59.2]} 8. c4 {[%clk 0:02:59.3]} 8...
Nbd7 {[%clk 0:02:59.6]} 9. Nc3 {[%clk 0:02:59]} 9... c5 {[%clk 0:02:58.9]} 10.
d5 {[%clk 0:02:49]} 10... a6 {[%clk 0:02:58.1]} 11. e4 {[%clk 0:02:47]} 11... b5
{[%clk 0:02:57.6]} 12. cxb5 {[%clk 0:02:47.1]} 12... axb5 {[%clk 0:02:57.5]} 13.
Bxb5 {[%clk 0:02:47.3]} 13... Qa5 {[%clk 0:02:57.2]} 14. Nd2 {[%clk 0:02:44.9]}
14... Nb6 {[%clk 0:02:54.4]} 15. Re1 {[%clk 0:02:15.6]} 15... Rfd8 {[%clk
0:02:50.3]} 16. Qc2 {[%clk 0:02:11.3]} 16... e6 {[%clk 0:02:47.6]} 17. dxe6
{[%clk 0:02:07]} 17... fxe6 {[%clk 0:02:47.6]} 18. a4 {[%clk 0:01:51.2]} 18...
d5 {[%clk 0:02:45.1]} 19. Nb3 {[%clk 0:01:41.9]} 19... Qa7 {[%clk 0:02:41.3]}
20. Nxc5 {[%clk 0:01:39.8]} 20... d4 {[%clk 0:02:34.5]} 21. Nxb7 {[%clk
0:01:35]} 21... Qxb7 {[%clk 0:02:31.3]} 22. Nb1 {[%clk 0:01:31.3]} 22... Rac8
{[%clk 0:02:27.2]} 23. Qd3 {[%clk 0:01:31.6]} 23... Nbd7 {[%clk 0:02:24.1]} 24.
Nd2 {[%clk 0:01:26.7]} 24... e5 {[%clk 0:02:21.9]} 25. Bg5 {[%clk 0:01:26.3]}
25... Nc5 {[%clk 0:02:21.4]} 26. Qg3 {[%clk 0:01:24.8]} 26... Nfxe4 {[%clk
0:02:19.5]} 27. Nxe4 {[%clk 0:01:23]} 27... Nxe4 {[%clk 0:02:19.6]} 28. Qb3+
{[%clk 0:01:23.5]} 28... Kh8 {[%clk 0:02:11.5]} 29. Bxd8 {[%clk 0:01:23.6]}
29... Rxd8 {[%clk 0:02:12.3]} 30. Qf3 {[%clk 0:01:23.5]} 30... Nc5 {[%clk
0:02:10.9]} 31. Qxb7 {[%clk 0:01:22.9]} 31... Nxb7 {[%clk 0:02:11.8]} 32. a5
{[%clk 0:01:23.4]} 32... Nd6 {[%clk 0:02:11.1]} 33. Bd3 {[%clk 0:01:22.6]} 33...
Rb8 {[%clk 0:02:11.1]} 34. a6 {[%clk 0:01:22.3]} 34... Ra8 {[%clk 0:02:10.9]}
35. a7 {[%clk 0:01:20.5]} 35... e4 {[%clk 0:02:11.1]} 36. Bxe4 {[%clk
0:01:20.4]} 36... Nxe4 {[%clk 0:02:11.5]} 37. Rxe4 {[%clk 0:01:20.7]} 37... d3
{[%clk 0:02:12]} 38. Re7 {[%clk 0:01:18]} 38... Bxb2 {[%clk 0:02:09.4]} 39. Rd1
{[%clk 0:01:16]} 39... Bd4 {[%clk 0:02:08]} 40. Rxd3 {[%clk 0:01:16]} 40... Rxa7
{[%clk 0:02:08.4]} 41. Rxa7 {[%clk 0:01:16]} 41... Bxa7 {[%clk 0:02:07.4]} 42.
Rd8+ {[%clk 0:01:16.3]} 1-0

[Event "Late-Titled-Tuesday-Blitz-May-28-2024"]
[Site "Chess.com"]
[Date "2024.05.28"]
[Round "7"]
[White "jaramsdal"]
[Black "ChessLebaneseSalah"]
[Result "0-1"]
[WhiteElo "2405"]
[BlackElo "2558"]
[TimeControl "180+1"]
[EndTime "15:15:06 PDT"]
[Termination "ChessLebaneseSalah won by resignation"]

1. e4 {[%clk 0:03:00.9]} 1... e5 {[%clk 0:02:59.1]} 2. f4 {[%clk 0:02:58.3]}
2... d5 {[%clk 0:02:56.3]} 3. exd5 {[%clk 0:02:46.2]} 3... exf4 {[%clk
0:02:56.6]} 4. Nf3 {[%clk 0:02:41.1]} 4... Bd6 {[%clk 0:02:56.4]} 5. Nc3 {[%clk
0:02:38.4]} 5... Nf6 {[%clk 0:02:56.3]} 6. d4 {[%clk 0:02:36.8]} 6... O-O {[%clk
0:02:56.2]} 7. Be2 {[%clk 0:02:36]} 7... Re8 {[%clk 0:02:55.9]} 8. O-O {[%clk
0:02:36.4]} 8... h6 {[%clk 0:02:50]} 9. Ne5 {[%clk 0:02:32.4]} 9... Nbd7 {[%clk
0:02:39.4]} 10. Nxd7 {[%clk 0:02:23.2]} 10... Qxd7 {[%clk 0:02:32.6]} 11. Bxf4
{[%clk 0:02:22.8]} 11... Bxf4 {[%clk 0:02:31.7]} 12. Rxf4 {[%clk 0:02:23.7]}
12... Nxd5 {[%clk 0:02:28.8]} 13. Nxd5 {[%clk 0:02:21.6]} 13... Qxd5 {[%clk
0:02:29.4]} 14. Qf1 {[%clk 0:02:02.6]} 14... Be6 {[%clk 0:02:19.5]} 15. Bf3
{[%clk 0:02:00.8]} 15... Qd6 {[%clk 0:02:13.8]} 16. Bh5 {[%clk 0:01:16.3]} 16...
Re7 {[%clk 0:02:04.3]} 17. c3 {[%clk 0:01:14.9]} 17... Rf8 {[%clk 0:01:57.5]}
18. Re1 {[%clk 0:01:14.4]} 18... c5 {[%clk 0:01:56.5]} 19. Kh1 {[%clk
0:01:07.7]} 19... Bxa2 {[%clk 0:01:51.8]} 20. Rxe7 {[%clk 0:00:37.1]} 20... Qxe7
{[%clk 0:01:50.4]} 21. dxc5 {[%clk 0:00:37.1]} 21... Qxc5 {[%clk 0:01:42.9]} 22.
c4 {[%clk 0:00:31.4]} 22... Qxh5 {[%clk 0:01:41.4]} 0-1

[Event "Late-Titled-Tuesday-Blitz-May-28-2024"]
[Site "Chess.com"]
[Date "2024.05.28"]
[Round "7"]
[White "TatjanaVasilevich"]
[Black "northridgehawk"]
[Result "1-0"]
[WhiteElo "2572"]
[BlackElo "2352"]
[TimeControl "180+1"]
[EndTime "15:15:18 PDT"]
[Termination "TatjanaVasilevich won by resignation"]

1. d4 {[%clk 0:03:00.1]} 1... Nf6 {[%clk 0:02:58.6]} 2. c4 {[%clk 0:02:59.9]}
2... g6 {[%clk 0:02:58.1]} 3. Nc3 {[%clk 0:02:59.6]} 3... d5 {[%clk 0:02:57.6]}
4. cxd5 {[%clk 0:02:59.6]} 4... Nxd5 {[%clk 0:02:57.7]} 5. e4 {[%clk 0:03:00.2]}
5... Nxc3 {[%clk 0:02:57.3]} 6. bxc3 {[%clk 0:03:01]} 6... Bg7 {[%clk
0:02:57.6]} 7. Bc4 {[%clk 0:03:00.1]} 7... O-O {[%clk 0:02:52.7]} 8. Ne2 {[%clk
0:02:55.3]} 8... Nc6 {[%clk 0:02:52.5]} 9. O-O {[%clk 0:02:54.5]} 9... b6 {[%clk
0:02:51.8]} 10. f3 {[%clk 0:02:52.1]} 10... Bb7 {[%clk 0:02:50.7]} 11. Be3
{[%clk 0:02:51.9]} 11... e5 {[%clk 0:02:49.6]} 12. d5 {[%clk 0:02:51]} 12... Na5
{[%clk 0:02:49.7]} 13. Bd3 {[%clk 0:02:50.5]} 13... c6 {[%clk 0:02:48.4]} 14. c4
{[%clk 0:02:49.9]} 14... cxd5 {[%clk 0:02:47.3]} 15. cxd5 {[%clk 0:02:49.6]}
15... Rc8 {[%clk 0:02:47.9]} 16. Qa4 {[%clk 0:02:46]} 16... Qd6 {[%clk
0:02:38.5]} 17. Rfc1 {[%clk 0:02:44.9]} 17... Rc7 {[%clk 0:02:32.5]} 18. Rxc7
{[%clk 0:02:40.7]} 18... Qxc7 {[%clk 0:02:33.4]} 19. Rc1 {[%clk 0:02:41.1]}
19... Qd6 {[%clk 0:02:34]} 20. Nc3 {[%clk 0:02:41]} 20... Rc8 {[%clk 0:02:32.6]}
21. Kf2 {[%clk 0:02:37.7]} 21... a6 {[%clk 0:02:21]} 22. Ne2 {[%clk 0:02:29.6]}
22... Rxc1 {[%clk 0:02:18.5]} 23. Nxc1 {[%clk 0:02:30.5]} 23... Bf8 {[%clk
0:02:15.4]} 24. Nb3 {[%clk 0:02:26.3]} 24... Nxb3 {[%clk 0:02:14.9]} 25. Qxb3
{[%clk 0:02:27.2]} 25... b5 {[%clk 0:02:15.2]} 26. a4 {[%clk 0:02:27.2]} 26...
Qd8 {[%clk 0:01:55.7]} 27. axb5 {[%clk 0:02:26.5]} 27... Qh4+ {[%clk 0:01:55.4]}
28. Kf1 {[%clk 0:02:23.3]} 28... Qxh2 {[%clk 0:01:54.7]} 29. bxa6 {[%clk
0:02:22.2]} 29... Qh1+ {[%clk 0:01:51.4]} 30. Kf2 {[%clk 0:02:19.8]} 30... Qh4+
{[%clk 0:01:50.2]} 31. Ke2 {[%clk 0:02:18.9]} 31... Bxa6 {[%clk 0:01:47]} 32.
Bxa6 {[%clk 0:02:18.3]} 32... Qg3 {[%clk 0:01:47.7]} 33. Kf1 {[%clk 0:02:17.3]}
33... Qh2 {[%clk 0:01:44.6]} 34. Qb8 {[%clk 0:02:15.7]} 34... Qh1+ {[%clk
0:01:44.7]} 35. Kf2 {[%clk 0:02:14.5]} 35... Qh4+ {[%clk 0:01:39.1]} 36. Ke2
{[%clk 0:02:14.5]} 36... Kg7 {[%clk 0:01:30.8]} 37. d6 {[%clk 0:02:13.9]} 37...
Qg3 {[%clk 0:01:27.8]} 38. Kf1 {[%clk 0:02:09.4]} 38... Qh4 {[%clk 0:01:19.6]}
39. d7 {[%clk 0:02:06.1]} 39... Be7 {[%clk 0:01:20.1]} 40. Ke2 {[%clk
0:01:54.5]} 40... Qf6 {[%clk 0:01:15.5]} 41. Bb6 {[%clk 0:01:50.6]} 41... h5
{[%clk 0:01:10]} 42. d8=Q {[%clk 0:01:50.1]} 42... Bxd8 {[%clk 0:01:09.6]} 43.
Qxd8 {[%clk 0:01:50.3]} 1-0

[Event "Late-Titled-Tuesday-Blitz-May-28-2024"]
[Site "Chess.com"]
[Date "2024.05.28"]
[Round "7"]
[White "Zq1"]
[Black "WildBizon"]
[Result "0-1"]
[WhiteElo "2539"]
[BlackElo "2729"]
[TimeControl "180+1"]
[EndTime "15:15:25 PDT"]
[Termination "WildBizon won by resignation"]

1. d4 {[%clk 0:03:00.9]} 1... Nf6 {[%clk 0:02:57.5]} 2. c4 {[%clk 0:03:00.9]}
2... b6 {[%clk 0:02:56.1]} 3. Nc3 {[%clk 0:02:56.7]} 3... Bb7 {[%clk 0:02:56.4]}
4. d5 {[%clk 0:02:56.8]} 4... e6 {[%clk 0:02:56]} 5. a3 {[%clk 0:02:56.9]} 5...
exd5 {[%clk 0:02:54.8]} 6. cxd5 {[%clk 0:02:56.4]} 6... c6 {[%clk 0:02:55]} 7.
g3 {[%clk 0:02:54.7]} 7... Nxd5 {[%clk 0:02:44.2]} 8. Nxd5 {[%clk 0:02:54]} 8...
cxd5 {[%clk 0:02:45.1]} 9. Bg2 {[%clk 0:02:54]} 9... Qf6 {[%clk 0:02:37.8]} 10.
Nh3 {[%clk 0:02:50.3]} 10... Bc5 {[%clk 0:02:28]} 11. O-O {[%clk 0:02:48.5]}
11... O-O {[%clk 0:02:27.5]} 12. Nf4 {[%clk 0:02:48.1]} 12... h6 {[%clk
0:01:42.2]} 13. Nxd5 {[%clk 0:02:47.1]} 13... Bxd5 {[%clk 0:01:42.2]} 14. Qxd5
{[%clk 0:02:35.1]} 14... Nc6 {[%clk 0:01:40.8]} 15. e3 {[%clk 0:02:25.2]} 15...
Rad8 {[%clk 0:01:37.8]} 16. Ra2 {[%clk 0:02:19.3]} 16... Ne7 {[%clk 0:01:35.3]}
17. Qf3 {[%clk 0:02:16]} 17... Qe6 {[%clk 0:01:34.7]} 18. Ra1 {[%clk 0:02:15.7]}
18... a5 {[%clk 0:01:32.9]} 19. Bd2 {[%clk 0:02:12.4]} 19... d5 {[%clk
0:01:32.6]} 20. b4 {[%clk 0:02:10.3]} 20... axb4 {[%clk 0:01:31.4]} 21. axb4
{[%clk 0:02:10.5]} 21... Bd6 {[%clk 0:01:32.1]} 22. Bc3 {[%clk 0:02:09.4]} 22...
Be5 {[%clk 0:01:29.7]} 23. Bxe5 {[%clk 0:02:03.3]} 23... Qxe5 {[%clk 0:01:30.6]}
24. Rad1 {[%clk 0:01:48.4]} 24... d4 {[%clk 0:01:26.1]} 25. exd4 {[%clk
0:01:46.3]} 25... Rxd4 {[%clk 0:01:27]} 26. Rfe1 {[%clk 0:01:32]} 26... Rxd1
{[%clk 0:01:26.7]} 27. Qxd1 {[%clk 0:01:31.2]} 27... Qc7 {[%clk 0:01:26.7]} 28.
Qe2 {[%clk 0:01:27.6]} 28... Nf5 {[%clk 0:01:20.3]} 29. Qe5 {[%clk 0:01:25.8]}
29... Qxe5 {[%clk 0:01:09.1]} 30. Rxe5 {[%clk 0:01:24.9]} 30... Nd6 {[%clk
0:01:09.5]} 31. Re7 {[%clk 0:01:19]} 31... Rd8 {[%clk 0:01:09.5]} 32. Bd5 {[%clk
0:01:14.9]} 32... Kf8 {[%clk 0:01:09.6]} 33. Rd7 {[%clk 0:01:07.2]} 33... Rxd7
{[%clk 0:01:09.3]} 0-1

[Event "Late-Titled-Tuesday-Blitz-May-28-2024"]
[Site "Chess.com"]
[Date "2024.05.28"]
[Round "7"]
[White "KirAk47"]
[Black "MarcoRiehle"]
[Result "1-0"]
[WhiteElo "2593"]
[BlackElo "2770"]
[TimeControl "180+1"]
[EndTime "15:15:26 PDT"]
[Termination "KirAk47 won by resignation"]

1. e4 {[%clk 0:02:59.3]} 1... e5 {[%clk 0:02:59.8]} 2. Nf3 {[%clk 0:02:59.1]}
2... Nc6 {[%clk 0:02:59.4]} 3. Bb5 {[%clk 0:02:58.1]} 3... a6 {[%clk 0:02:59.9]}
4. Ba4 {[%clk 0:02:57.7]} 4... Nf6 {[%clk 0:03:00.4]} 5. d3 {[%clk 0:02:57.9]}
5... d6 {[%clk 0:02:59.2]} 6. O-O {[%clk 0:02:57.9]} 6... g6 {[%clk 0:02:59.1]}
7. c3 {[%clk 0:02:56.9]} 7... Bg7 {[%clk 0:02:59.2]} 8. Re1 {[%clk 0:02:52.1]}
8... O-O {[%clk 0:02:58.3]} 9. Nbd2 {[%clk 0:02:45.2]} 9... b5 {[%clk
0:02:57.8]} 10. Bc2 {[%clk 0:02:44.9]} 10... Re8 {[%clk 0:02:56.9]} 11. Nf1
{[%clk 0:02:45]} 11... d5 {[%clk 0:02:57.1]} 12. Qe2 {[%clk 0:02:43.5]} 12...
Be6 {[%clk 0:02:54.9]} 13. a4 {[%clk 0:02:43.6]} 13... dxe4 {[%clk 0:02:54.7]}
14. dxe4 {[%clk 0:02:40.5]} 14... Bc4 {[%clk 0:02:53.7]} 15. Qd1 {[%clk
0:02:35.5]} 15... Na5 {[%clk 0:02:53.7]} 16. axb5 {[%clk 0:02:33.2]} 16... axb5
{[%clk 0:02:52.6]} 17. Ne3 {[%clk 0:02:33.1]} 17... Qxd1 {[%clk 0:02:50.5]} 18.
Rxd1 {[%clk 0:02:33.3]} 18... Nb3 {[%clk 0:02:48.8]} 19. Rxa8 {[%clk 0:02:32.7]}
19... Rxa8 {[%clk 0:02:49.7]} 20. Nxc4 {[%clk 0:02:33.3]} 20... bxc4 {[%clk
0:02:49.1]} 21. Nxe5 {[%clk 0:02:26.3]} 21... Ra1 {[%clk 0:02:46.7]} 22. Be3
{[%clk 0:02:12.4]} 22... Nxe4 {[%clk 0:02:40.8]} 23. Nxc4 {[%clk 0:02:10.2]}
23... Rxd1+ {[%clk 0:02:38]} 24. Bxd1 {[%clk 0:02:11.1]} 24... Nbc5 {[%clk
0:02:33.2]} 25. f3 {[%clk 0:01:57.2]} 25... Nd6 {[%clk 0:02:32.9]} 26. Nxd6
{[%clk 0:01:57.1]} 26... cxd6 {[%clk 0:02:33.4]} 27. b4 {[%clk 0:01:53]} 27...
Ne6 {[%clk 0:02:31.2]} 28. Bb3 {[%clk 0:01:10.3]} 28... Bxc3 {[%clk 0:02:29]}
29. Bxe6 {[%clk 0:01:09.9]} 29... fxe6 {[%clk 0:02:29.9]} 30. b5 {[%clk
0:01:10.2]} 30... d5 {[%clk 0:02:22.9]} 31. f4 {[%clk 0:00:34.3]} 31... d4
{[%clk 0:02:12.6]} 32. b6 {[%clk 0:00:26]} 32... dxe3 {[%clk 0:02:10.3]} 33. b7
{[%clk 0:00:25.1]} 33... Bd4 {[%clk 0:02:05.2]} 34. b8=Q+ {[%clk 0:00:24.1]}
34... Kg7 {[%clk 0:02:04.8]} 35. Kf1 {[%clk 0:00:21.6]} 35... Kf6 {[%clk
0:02:02.5]} 36. Qh8+ {[%clk 0:00:20.5]} 1-0

[Event "Late-Titled-Tuesday-Blitz-May-28-2024"]
[Site "Chess.com"]
[Date "2024.05.28"]
[Round "7"]
[White "FMalexhdez"]
[Black "SoCalJuniorChess"]
[Result "1-0"]
[WhiteElo "2269"]
[BlackElo "2211"]
[TimeControl "180+1"]
[EndTime "15:15:32 PDT"]
[Termination "FMalexhdez won by resignation"]

1. d4 {[%clk 0:02:32.9]} 1... Nf6 {[%clk 0:02:59.2]} 2. Nf3 {[%clk 0:02:32.8]}
2... c5 {[%clk 0:02:52.6]} 3. c3 {[%clk 0:02:28.7]} 3... cxd4 {[%clk 0:02:50.6]}
4. cxd4 {[%clk 0:02:27.5]} 4... d5 {[%clk 0:02:51.5]} 5. Bf4 {[%clk 0:02:25.6]}
5... Qb6 {[%clk 0:02:50.5]} 6. Qb3 {[%clk 0:02:19.1]} 6... Nc6 {[%clk
0:02:46.5]} 7. e3 {[%clk 0:02:13.8]} 7... Bf5 {[%clk 0:02:45.9]} 8. Nc3 {[%clk
0:02:13.3]} 8... e6 {[%clk 0:02:44.3]} 9. Bb5 {[%clk 0:02:10.2]} 9... Be7 {[%clk
0:02:37.4]} 10. Ne5 {[%clk 0:02:07.3]} 10... O-O {[%clk 0:02:36.2]} 11. Bxc6
{[%clk 0:02:05.2]} 11... bxc6 {[%clk 0:02:21.6]} 12. Qxb6 {[%clk 0:02:04.9]}
12... axb6 {[%clk 0:02:21.2]} 13. Nxc6 {[%clk 0:02:05.5]} 13... Rfe8 {[%clk
0:02:16.6]} 14. Nxe7+ {[%clk 0:02:04.4]} 14... Rxe7 {[%clk 0:02:16.7]} 15. f3
{[%clk 0:01:57.5]} 15... Rd7 {[%clk 0:02:14.9]} 16. Kd2 {[%clk 0:01:56.9]} 16...
Nh5 {[%clk 0:02:13.7]} 17. Bg3 {[%clk 0:01:54]} 17... Nxg3 {[%clk 0:02:11.8]}
18. hxg3 {[%clk 0:01:54]} 18... h6 {[%clk 0:02:08.6]} 19. Rhc1 {[%clk
0:01:52.7]} 19... Rda7 {[%clk 0:02:02.7]} 20. a4 {[%clk 0:01:46]} 20... Ra5
{[%clk 0:02:01.2]} 21. b4 {[%clk 0:01:38.4]} 21... R5a7 {[%clk 0:02:00.9]} 22.
Ra3 {[%clk 0:01:36]} 22... b5 {[%clk 0:01:59.7]} 23. a5 {[%clk 0:01:20.8]} 23...
Rb8 {[%clk 0:01:55.4]} 24. Ne2 {[%clk 0:01:16.4]} 24... f6 {[%clk 0:01:51.5]}
25. Rac3 {[%clk 0:01:14.1]} 25... e5 {[%clk 0:01:51.2]} 26. Rc5 {[%clk
0:01:09.9]} 26... Rd7 {[%clk 0:01:45.8]} 27. Rc8+ {[%clk 0:01:07.1]} 27... Rxc8
{[%clk 0:01:45]} 28. Rxc8+ {[%clk 0:01:07.6]} 28... Kf7 {[%clk 0:01:45.8]} 29.
Rb8 {[%clk 0:01:07.5]} 29... Rc7 {[%clk 0:01:43]} 30. Nc3 {[%clk 0:01:05.6]}
30... exd4 {[%clk 0:01:42.4]} 31. exd4 {[%clk 0:01:05.1]} 31... Rc4 {[%clk
0:01:43.3]} 32. Rxb5 {[%clk 0:00:56.2]} 32... Rxd4+ {[%clk 0:01:43.3]} 33. Ke1
{[%clk 0:00:41.6]} 33... Ke6 {[%clk 0:01:39.4]} 34. a6 {[%clk 0:00:39.8]} 34...
Bd3 {[%clk 0:01:39.7]} 35. Rb6+ {[%clk 0:00:34.9]} 35... Kd7 {[%clk 0:01:39.9]}
36. a7 {[%clk 0:00:35.2]} 1-0